[Event "FIDE World Rapid Chess Championship 2021"]
[White "Karjakin, Sergey"]
[Black "Amin, Bassem"]
[WhiteFideId "14109603"]
[BlackFideId "10601457"]
[WhiteElo "2757"]
[BlackElo "2614"]
[Result "1-0"]
[Round "11"]
[TimeControl "900+10"]
[Date "2021.12.28"]
[WhiteClock "0:00:24"]
[BlackClock "0:00:20"]

1. e4 {[%clk 0:15:00]}  e5 {[%clk 0:15:00]} 2. Nf3 {[%clk 0:15:00]}  Nc6 {[%clk 0:15:00]} 3. Bc4 {[%clk 0:15:00]}  Nf6 {[%clk 0:15:00]} 4. d3 {[%clk 0:15:00]}  Bc5 {[%clk 0:15:00]} 5. c3 {[%clk 0:15:00]}  d6 {[%clk 0:15:03]} 6. O-O {[%clk 0:12:10]}  a6 {[%clk 0:15:03]} 7. a4 {[%clk 0:12:07]}  Ba7 {[%clk 0:15:03]} 8. Nbd2 {[%clk 0:12:07]}  O-O {[%clk 0:15:03]} 9. h3 {[%clk 0:12:07]}  h6 {[%clk 0:15:03]} 10. Re1 {[%clk 0:12:07]}  Re8 {[%clk 0:15:03]} 11. b4 {[%clk 0:12:07]}  Be6 {[%clk 0:15:03]} 12. Bxe6 {[%clk 0:12:41]}  Rxe6 {[%clk 0:13:54]} 13. Bb2 {[%clk 0:12:41]}  Ne7 {[%clk 0:13:54]} 14. Nf1 {[%clk 0:12:41]}  Ng6 {[%clk 0:13:54]} 15. c4 {[%clk 0:12:41]}  Nh7 {[%clk 0:12:30]} 16. Ng3 {[%clk 0:12:46]}  Ng5 {[%clk 0:10:38]} 17. Nh2 {[%clk 0:11:03]}  Nf4 {[%clk 0:10:38]} 18. d4 {[%clk 0:09:12]}  a5 {[%clk 0:10:12]} 19. bxa5 {[%clk 0:08:31]}  Rg6 {[%clk 0:08:27]} 20. Ra3 {[%clk 0:08:31]}  exd4 {[%clk 0:08:11]} 21. Bc1 {[%clk 0:06:18]}  Nge6 {[%clk 0:06:12]} 22. Rf3 {[%clk 0:06:18]}  Qh4 {[%clk 0:05:07]} 23. Kh1 {[%clk 0:04:12]}  Nxh3 {[%clk 0:01:03]} 24. gxh3 {[%clk 0:02:11]}  Qxh3 {[%clk 0:01:03]} 25. Rg1 {[%clk 0:02:11]}  Qh4 {[%clk 0:01:03]} 26. Nf5 {[%clk 0:02:11]}  Rxg1+ {[%clk 0:01:03]} 27. Qxg1 {[%clk 0:02:11]}  Qxe4 {[%clk 0:01:03]} 28. Nxh6+ {[%clk 0:00:54]}  Kf8 {[%clk 0:01:14]} 29. Nxf7 {[%clk 0:00:54]}  Ke8 {[%clk 0:01:14]} 30. Ng5 {[%clk 0:00:54]}  Nxg5 {[%clk 0:01:14]} 31. Qxg5 {[%clk 0:00:54]}  Kd7 {[%clk 0:01:14]} 32. Qxg7+ {[%clk 0:00:54]}  Kc6 {[%clk 0:01:14]} 33. Qg4 {[%clk 0:00:54]}  Qe1+ {[%clk 0:01:14]} 34. Kg2 {[%clk 0:00:54]}  Re8 {[%clk 0:01:14]} 35. Bf4 {[%clk 0:00:22]}  Qxa5 {[%clk 0:00:57]} 36. Bg3 {[%clk 0:00:22]}  Re7 {[%clk 0:00:57]} 37. Rf5 {[%clk 0:00:22]}  Qxa4 {[%clk 0:00:57]} 38. Qf3+ {[%clk 0:00:22]}  Kd7 {[%clk 0:00:57]} 39. Ng4 {[%clk 0:00:22]}  Qxc4 {[%clk 0:00:57]} 40. Nf6+ {[%clk 0:00:22]}  Kc8 {[%clk 0:00:57]} 41. Nd5 {[%clk 0:00:22]}  Re8 {[%clk 0:00:57]} 42. Rf7 {[%clk 0:00:22]}  Qe2 {[%clk 0:00:20]} 43. Rxc7+ {[%clk 0:00:24]}  Kb8 {[%clk 0:00:20]} 44. Qxe2 {[%clk 0:00:24]}  Rxe2 {[%clk 0:00:20]} 45. Bxd6 {[%clk 0:00:24]}  d3 {[%clk 0:00:20]} 46. Rc3+ {[%clk 0:00:24]}  Ka8 {[%clk 0:00:20]} 47. Nc7+ {[%clk 0:00:24]} 1-0


[Site "http://www.Chess.com"]

[Event "FIDE World Rapid Chess Championship 2021"]
[White "Dubov, Daniil"]
[Black "Ponkratov, Pavel"]
[WhiteFideId "24126055"]
[BlackFideId "4157800"]
[WhiteElo "2735"]
[BlackElo "2614"]
[Result "1-0"]
[Round "11"]
[TimeControl "900+10"]
[Date "2021.12.28"]
[WhiteClock "0:08:11"]
[BlackClock "0:11:41"]

1. d4 {[%clk 0:15:00]}  c5 {[%clk 0:15:00]} 2. d5 {[%clk 0:15:00]}  e5 {[%clk 0:15:00]} 3. e4 {[%clk 0:15:00]}  d6 {[%clk 0:15:00]} 4. Nc3 {[%clk 0:15:00]}  Be7 {[%clk 0:15:00]} 5. Bb5+ {[%clk 0:15:00]}  Nd7 {[%clk 0:15:00]} 6. a4 {[%clk 0:15:00]}  a6 {[%clk 0:15:00]} 7. Be2 {[%clk 0:15:00]}  Bg5 {[%clk 0:15:00]} 8. Bxg5 {[%clk 0:15:42]}  Qxg5 {[%clk 0:16:15]} 9. Nf3 {[%clk 0:15:42]}  Qxg2 {[%clk 0:16:15]} 10. Rg1 {[%clk 0:15:42]}  Qh3 {[%clk 0:16:15]} 11. Rxg7 {[%clk 0:15:42]}  Qh6 {[%clk 0:16:15]} 12. Rg1 {[%clk 0:15:42]}  Ne7 {[%clk 0:16:15]} 13. Qd2 {[%clk 0:15:42]}  Qxd2+ {[%clk 0:16:15]} 14. Nxd2 {[%clk 0:15:42]}  Ng6 {[%clk 0:16:15]} 15. Nc4 {[%clk 0:15:42]}  Ke7 {[%clk 0:16:15]} 16. a5 {[%clk 0:15:42]}  Nf6 {[%clk 0:16:15]} 17. Ra3 {[%clk 0:15:42]}  Rb8 {[%clk 0:16:32]} 18. Rb3 {[%clk 0:14:33]}  Rd8 {[%clk 0:16:32]} 19. Rb6 {[%clk 0:14:33]}  Nf4 {[%clk 0:16:32]} 20. Kd2 {[%clk 0:13:49]}  h5 {[%clk 0:15:07]} 21. h4 {[%clk 0:13:49]}  Ng6 {[%clk 0:15:07]} 22. Rg5 {[%clk 0:12:35]}  Nxh4 {[%clk 0:14:25]} 23. Bxh5 {[%clk 0:11:09]}  Nxh5 {[%clk 0:13:10]} 24. Rxh5 {[%clk 0:11:09]}  Ng6 {[%clk 0:13:10]} 25. Rh6 {[%clk 0:11:09]}  Bg4 {[%clk 0:13:10]} 26. Ne3 {[%clk 0:11:09]}  Bd7 {[%clk 0:13:10]} 27. Nf5+ {[%clk 0:09:50]}  Bxf5 {[%clk 0:12:17]} 28. exf5 {[%clk 0:09:50]}  Nf4 {[%clk 0:12:17]} 29. f6+ {[%clk 0:09:50]}  Kd7 {[%clk 0:12:17]} 30. Rh7 {[%clk 0:09:50]}  Rf8 {[%clk 0:11:33]} 31. Ne4 {[%clk 0:08:53]}  Kc7 {[%clk 0:11:33]} 32. Rxd6 {[%clk 0:08:53]}  c4 {[%clk 0:11:33]} 33. Kc3 {[%clk 0:08:53]}  Rbc8 {[%clk 0:11:33]} 34. Kxc4 {[%clk 0:08:53]}  Kb8+ {[%clk 0:11:33]} 35. Nc5 {[%clk 0:08:53]}  e4 {[%clk 0:11:41]} 36. Rd7 {[%clk 0:08:11]}  Ng6 {[%clk 0:11:41]} 37. Kd4 {[%clk 0:08:11]} 1-0


[Site "http://www.Chess.com"]

[Event "FIDE World Rapid Chess Championship 2021"]
[White "Mamedyarov, Shakhriyar"]
[Black "Van Foreest, Jorden"]
[WhiteFideId "13401319"]
[BlackFideId "1039784"]
[WhiteElo "2727"]
[BlackElo "2563"]
[Result "1/2-1/2"]
[Round "11"]
[TimeControl "900+10"]
[Date "2021.12.28"]
[WhiteClock "0:00:37"]
[BlackClock "0:01:12"]

1. d4 {[%clk 0:15:00]}  d5 {[%clk 0:15:00]} 2. c4 {[%clk 0:15:00]}  e6 {[%clk 0:15:00]} 3. Nc3 {[%clk 0:15:00]}  c5 {[%clk 0:15:00]} 4. cxd5 {[%clk 0:15:00]}  cxd4 {[%clk 0:15:00]} 5. Qxd4 {[%clk 0:15:00]}  Nc6 {[%clk 0:15:00]} 6. Qd1 {[%clk 0:15:00]}  exd5 {[%clk 0:15:00]} 7. Qxd5 {[%clk 0:15:25]}  Bd6 {[%clk 0:15:54]} 8. Nf3 {[%clk 0:15:25]}  Nf6 {[%clk 0:15:54]} 9. Qd1 {[%clk 0:15:25]}  O-O {[%clk 0:15:54]} 10. g3 {[%clk 0:15:25]}  Qb6 {[%clk 0:14:31]} 11. Bg2 {[%clk 0:14:18]}  Rd8 {[%clk 0:12:15]} 12. Qa4 {[%clk 0:12:05]}  Bc5 {[%clk 0:12:11]} 13. O-O {[%clk 0:09:13]}  h6 {[%clk 0:12:11]} 14. Qb5 {[%clk 0:09:15]}  Qxb5 {[%clk 0:08:49]} 15. Nxb5 {[%clk 0:09:15]}  Bf5 {[%clk 0:08:49]} 16. Be3 {[%clk 0:09:15]}  Bxe3 {[%clk 0:08:49]} 17. fxe3 {[%clk 0:09:15]}  Be4 {[%clk 0:08:49]} 18. Nc3 {[%clk 0:05:20]}  Bh7 {[%clk 0:07:59]} 19. h3 {[%clk 0:05:20]}  Re8 {[%clk 0:07:59]} 20. Kf2 {[%clk 0:05:20]}  Be4 {[%clk 0:06:53]} 21. Rfd1 {[%clk 0:04:29]}  Re7 {[%clk 0:06:53]} 22. Rac1 {[%clk 0:04:00]}  Rae8 {[%clk 0:05:46]} 23. Nb5 {[%clk 0:04:00]}  Bd5 {[%clk 0:05:46]} 24. Nd6 {[%clk 0:04:00]}  Rd8 {[%clk 0:05:46]} 25. Nf5 {[%clk 0:04:00]}  Red7 {[%clk 0:05:46]} 26. a3 {[%clk 0:04:00]}  h5 {[%clk 0:05:39]} 27. Ke1 {[%clk 0:01:43]}  g6 {[%clk 0:05:39]} 28. N5d4 {[%clk 0:01:43]}  Kg7 {[%clk 0:03:44]} 29. Nxc6 {[%clk 0:01:12]}  Bxc6 {[%clk 0:03:44]} 30. Rxd7 {[%clk 0:01:12]}  Rxd7 {[%clk 0:03:44]} 31. Rc4 {[%clk 0:01:12]}  Re7 {[%clk 0:03:44]} 32. Nh4 {[%clk 0:01:12]}  Bd7 {[%clk 0:03:08]} 33. e4 {[%clk 0:00:22]}  Bc6 {[%clk 0:03:08]} 34. e5 {[%clk 0:00:22]}  Nd7 {[%clk 0:03:08]} 35. Bxc6 {[%clk 0:00:22]}  Nxe5 {[%clk 0:03:08]} 36. Bd5 {[%clk 0:00:22]}  Nxc4 {[%clk 0:03:08]} 37. Bxc4 {[%clk 0:00:22]}  Rc7 {[%clk 0:03:08]} 38. Bd5 {[%clk 0:00:22]}  Rc2 {[%clk 0:03:08]} 39. b3 {[%clk 0:00:22]}  Rc5 {[%clk 0:03:08]} 40. e4 {[%clk 0:00:22]}  Rc3 {[%clk 0:03:08]} 41. Kf2 {[%clk 0:00:22]}  Rc2+ {[%clk 0:03:15]} 42. Kf3 {[%clk 0:00:27]}  b5 {[%clk 0:03:15]} 43. a4 {[%clk 0:00:27]}  Rc3+ {[%clk 0:03:15]} 44. Kf2 {[%clk 0:00:27]}  Rc2+ {[%clk 0:03:15]} 45. Kf3 {[%clk 0:00:27]}  Rc3+ {[%clk 0:01:12]} 46. Kf2 {[%clk 0:00:37]}  Rc2+ {[%clk 0:01:12]} 1/2-1/2


[Site "http://www.Chess.com"]

[Event "FIDE World Rapid Chess Championship 2021"]
[White "Volokitin, Andrei"]
[Black "Shevchenko, Kirill"]
[WhiteFideId "14107090"]
[BlackFideId "14129574"]
[WhiteElo "2631"]
[BlackElo "2508"]
[Result "1/2-1/2"]
[Round "11"]
[TimeControl "900+10"]
[Date "2021.12.28"]
[WhiteClock "0:16:04"]
[BlackClock "0:16:02"]

1. Nf3 {[%clk 0:15:00]}  Nf6 {[%clk 0:15:00]} 2. c4 {[%clk 0:15:00]}  g6 {[%clk 0:15:00]} 3. g3 {[%clk 0:15:00]}  Bg7 {[%clk 0:15:00]} 4. Bg2 {[%clk 0:15:00]}  O-O {[%clk 0:15:00]} 5. O-O {[%clk 0:15:00]}  d6 {[%clk 0:15:00]} 6. d4 {[%clk 0:15:00]}  Nc6 {[%clk 0:15:00]} 7. Nc3 {[%clk 0:15:00]}  e5 {[%clk 0:15:00]} 8. dxe5 {[%clk 0:16:04]}  dxe5 {[%clk 0:16:02]} 9. Qxd8 {[%clk 0:16:04]}  Rxd8 {[%clk 0:16:02]} 10. Bg5 {[%clk 0:16:04]}  h6 {[%clk 0:16:02]} 11. Bxf6 {[%clk 0:16:04]}  Bxf6 {[%clk 0:16:02]} 12. Nd5 {[%clk 0:16:04]}  Kg7 {[%clk 0:16:02]} 13. Nxc7 {[%clk 0:16:04]}  Rb8 {[%clk 0:16:02]} 14. e4 {[%clk 0:16:04]}  Be7 {[%clk 0:16:02]} 1/2-1/2


[Site "http://www.Chess.com"]

[Event "FIDE World Rapid Chess Championship 2021"]
[White "Puranik, Abhimanyu"]
[Black "Vachier-Lagrave, Maxime"]
[WhiteFideId "5061245"]
[BlackFideId "623539"]
[WhiteElo "2472"]
[BlackElo "2773"]
[Result "0-1"]
[Round "11"]
[TimeControl "900+10"]
[Date "2021.12.28"]
[WhiteClock "0:01:14"]
[BlackClock "0:06:02"]

1. c4 {[%clk 0:15:00]}  e5 {[%clk 0:15:00]} 2. Nc3 {[%clk 0:15:00]}  Nf6 {[%clk 0:15:00]} 3. Nf3 {[%clk 0:15:00]}  Nc6 {[%clk 0:15:00]} 4. g3 {[%clk 0:15:00]}  Bb4 {[%clk 0:15:00]} 5. Nd5 {[%clk 0:15:00]}  e4 {[%clk 0:15:00]} 6. Nh4 {[%clk 0:15:00]}  O-O {[%clk 0:15:00]} 7. Bg2 {[%clk 0:14:58]}  d6 {[%clk 0:16:06]} 8. a3 {[%clk 0:14:58]}  Bc5 {[%clk 0:16:06]} 9. O-O {[%clk 0:14:58]}  Re8 {[%clk 0:16:06]} 10. Rb1 {[%clk 0:13:17]}  Nxd5 {[%clk 0:15:41]} 11. cxd5 {[%clk 0:13:17]}  Nd4 {[%clk 0:15:41]} 12. e3 {[%clk 0:13:17]}  g5 {[%clk 0:13:56]} 13. exd4 {[%clk 0:12:27]}  Bxd4 {[%clk 0:13:56]} 14. d3 {[%clk 0:12:27]}  gxh4 {[%clk 0:13:56]} 15. dxe4 {[%clk 0:12:27]}  Bg7 {[%clk 0:12:53]} 16. Be3 {[%clk 0:12:07]}  Bd7 {[%clk 0:12:53]} 17. Bd4 {[%clk 0:12:07]}  Qg5 {[%clk 0:12:53]} 18. Rc1 {[%clk 0:11:18]}  c5 {[%clk 0:10:58]} 19. dxc6 {[%clk 0:11:18]}  Bxc6 {[%clk 0:10:58]} 20. Re1 {[%clk 0:09:07]}  Re6 {[%clk 0:10:46]} 21. f4 {[%clk 0:09:04]}  Qh6 {[%clk 0:09:58]} 22. Be3 {[%clk 0:07:52]}  hxg3 {[%clk 0:09:58]} 23. hxg3 {[%clk 0:07:52]}  Qf6 {[%clk 0:09:12]} 24. Rc4 {[%clk 0:06:16]}  Rae8 {[%clk 0:07:17]} 25. Bd4 {[%clk 0:05:51]}  Qg6 {[%clk 0:07:17]} 26. f5 {[%clk 0:04:42]}  Qxf5 {[%clk 0:05:32]} 27. exf5 {[%clk 0:04:42]}  Rxe1+ {[%clk 0:05:32]} 28. Qxe1 {[%clk 0:04:42]}  Bxd4+ {[%clk 0:05:48]} 29. Rxd4 {[%clk 0:02:13]}  Rxe1+ {[%clk 0:05:48]} 30. Kf2 {[%clk 0:02:13]}  Rb1 {[%clk 0:05:48]} 31. Bxc6 {[%clk 0:02:13]}  Rxb2+ {[%clk 0:05:48]} 32. Kf3 {[%clk 0:02:13]}  bxc6 {[%clk 0:05:48]} 33. Rxd6 {[%clk 0:02:13]}  Kg7 {[%clk 0:05:48]} 34. Rxc6 {[%clk 0:02:13]}  Rb3+ {[%clk 0:05:48]} 35. Kf4 {[%clk 0:02:13]}  Rxa3 {[%clk 0:05:48]} 36. g4 {[%clk 0:02:13]}  h6 {[%clk 0:05:48]} 37. Rd6 {[%clk 0:02:13]}  Ra4+ {[%clk 0:05:48]} 38. Kf3 {[%clk 0:02:08]}  a5 {[%clk 0:06:03]} 39. Ra6 {[%clk 0:02:08]}  Ra1 {[%clk 0:06:03]} 40. Kg2 {[%clk 0:02:08]}  a4 {[%clk 0:06:03]} 41. Kf2 {[%clk 0:02:08]}  a3 {[%clk 0:06:03]} 42. Kg2 {[%clk 0:02:08]}  a2 {[%clk 0:06:03]} 43. Kh2 {[%clk 0:02:08]}  Kf8 {[%clk 0:06:03]} 44. f6 {[%clk 0:01:14]}  Ke8 {[%clk 0:06:02]} 45. Ra7 {[%clk 0:01:14]}  Kd8 {[%clk 0:06:02]} 46. Kg2 {[%clk 0:01:14]}  Kc8 {[%clk 0:06:02]} 47. Rxf7 {[%clk 0:01:14]}  Rg1+ {[%clk 0:06:02]} 0-1


[Site "http://www.Chess.com"]

[Event "FIDE World Rapid Chess Championship 2021"]
[White "Giri, Anish"]
[Black "Chigaev, Maksim"]
[WhiteFideId "24116068"]
[BlackFideId "4108116"]
[WhiteElo "2767"]
[BlackElo "2605"]
[Result "1-0"]
[Round "11"]
[TimeControl "900+10"]
[Date "2021.12.28"]
[WhiteClock "0:00:27"]
[BlackClock "0:00:31"]

1. Nf3 {[%clk 0:15:00]}  Nf6 {[%clk 0:15:00]} 2. c4 {[%clk 0:15:00]}  g6 {[%clk 0:15:00]} 3. Nc3 {[%clk 0:15:00]}  Bg7 {[%clk 0:15:00]} 4. e4 {[%clk 0:15:00]}  d6 {[%clk 0:15:00]} 5. d4 {[%clk 0:15:00]}  O-O {[%clk 0:15:00]} 6. Be2 {[%clk 0:15:00]}  e5 {[%clk 0:15:00]} 7. O-O {[%clk 0:15:00]}  exd4 {[%clk 0:15:00]} 8. Nxd4 {[%clk 0:15:00]}  Re8 {[%clk 0:15:00]} 9. f3 {[%clk 0:15:00]}  c6 {[%clk 0:15:00]} 10. Bg5 {[%clk 0:15:57]}  Qb6 {[%clk 0:15:56]} 11. Kh1 {[%clk 0:15:57]}  Nxe4 {[%clk 0:15:56]} 12. Nxe4 {[%clk 0:15:57]}  Qxd4 {[%clk 0:15:56]} 13. Nxd6 {[%clk 0:15:57]}  Re6 {[%clk 0:13:41]} 14. Nxc8 {[%clk 0:16:00]}  h6 {[%clk 0:13:41]} 15. Ne7+ {[%clk 0:16:00]}  Kh7 {[%clk 0:13:41]} 16. Nd5 {[%clk 0:14:34]}  Na6 {[%clk 0:12:57]} 17. Bc1 {[%clk 0:13:22]}  Qxd1 {[%clk 0:09:44]} 18. Bxd1 {[%clk 0:08:26]}  cxd5 {[%clk 0:09:44]} 19. cxd5 {[%clk 0:08:26]}  Rb6 {[%clk 0:09:44]} 20. Rb1 {[%clk 0:08:26]}  Re8 {[%clk 0:07:13]} 21. Bf4 {[%clk 0:07:45]}  Rb4 {[%clk 0:04:52]} 22. Bd6 {[%clk 0:07:45]}  Rxb2 {[%clk 0:04:42]} 23. Rxb2 {[%clk 0:04:32]}  Bxb2 {[%clk 0:04:42]} 24. Bb3 {[%clk 0:04:32]}  Bf6 {[%clk 0:04:42]} 25. Rd1 {[%clk 0:03:49]}  b6 {[%clk 0:02:51]} 26. Bc4 {[%clk 0:03:49]}  Nc5 {[%clk 0:02:51]} 27. Kg1 {[%clk 0:03:25]}  Kg7 {[%clk 0:02:15]} 28. Kf1 {[%clk 0:03:25]}  Rd8 {[%clk 0:02:15]} 29. Bg3 {[%clk 0:03:25]}  h5 {[%clk 0:02:15]} 30. Bb5 {[%clk 0:01:41]}  h4 {[%clk 0:00:48]} 31. Bc7 {[%clk 0:01:41]}  Rc8 {[%clk 0:00:48]} 32. Bf4 {[%clk 0:01:41]}  g5 {[%clk 0:00:48]} 33. Be3 {[%clk 0:01:41]}  Rd8 {[%clk 0:00:48]} 34. d6 {[%clk 0:01:41]}  Be5 {[%clk 0:00:31]} 35. Bxg5 {[%clk 0:00:57]}  Rxd6 {[%clk 0:00:31]} 36. Rxd6 {[%clk 0:00:57]}  Bxd6 {[%clk 0:00:31]} 37. Bxh4 {[%clk 0:00:57]}  a6 {[%clk 0:00:31]} 38. Be2 {[%clk 0:00:57]}  b5 {[%clk 0:00:31]} 39. Bf2 {[%clk 0:00:57]}  Na4 {[%clk 0:00:31]} 40. Bd1 {[%clk 0:00:57]}  Nc5 {[%clk 0:00:31]} 41. h4 {[%clk 0:00:57]}  Nd3 {[%clk 0:00:31]} 42. Be3 {[%clk 0:00:57]}  Bc5 {[%clk 0:00:31]} 43. Ke2 {[%clk 0:00:27]}  Bxe3 {[%clk 0:00:31]} 44. Kxe3 {[%clk 0:00:27]}  Nb4 {[%clk 0:00:31]} 45. a3 {[%clk 0:00:27]}  Nd5+ {[%clk 0:00:31]} 46. Kd4 {[%clk 0:00:27]}  Nf4 {[%clk 0:00:31]} 47. g3 {[%clk 0:00:27]}  Ne6+ {[%clk 0:00:31]} 48. Kd5 {[%clk 0:00:27]}  a5 {[%clk 0:00:31]} 49. f4 {[%clk 0:00:27]}  b4 {[%clk 0:00:31]} 50. a4 {[%clk 0:00:27]}  Nc7+ {[%clk 0:00:31]} 51. Kc5 {[%clk 0:00:27]}  Ne6+ {[%clk 0:00:31]} 52. Kb5 {[%clk 0:00:27]}  Nd4+ {[%clk 0:00:31]} 53. Kxa5 {[%clk 0:00:27]}  b3 {[%clk 0:00:31]} 54. Bxb3 {[%clk 0:00:27]}  Nxb3+ {[%clk 0:00:31]} 55. Kb6 {[%clk 0:00:27]} 1-0


[Site "http://www.Chess.com"]

[Event "FIDE World Rapid Chess Championship 2021"]
[White "Predke, Alexandr"]
[Black "Rapport, Richard"]
[WhiteFideId "24107581"]
[BlackFideId "738590"]
[WhiteElo "2630"]
[BlackElo "2750"]
[Result "0-1"]
[Round "11"]
[TimeControl "900+10"]
[Date "2021.12.28"]
[WhiteClock "0:00:22"]
[BlackClock "0:01:12"]

1. d4 {[%clk 0:15:17]}  Nf6 {[%clk 0:15:00]} 2. c4 {[%clk 0:15:17]}  g6 {[%clk 0:12:58]} 3. Nc3 {[%clk 0:15:17]}  Bg7 {[%clk 0:12:58]} 4. Nf3 {[%clk 0:15:17]}  O-O {[%clk 0:12:58]} 5. Bg5 {[%clk 0:15:17]}  d6 {[%clk 0:12:58]} 6. e3 {[%clk 0:15:17]}  c5 {[%clk 0:12:58]} 7. d5 {[%clk 0:15:17]}  a6 {[%clk 0:12:58]} 8. Be2 {[%clk 0:15:02]}  Qa5 {[%clk 0:12:08]} 9. O-O {[%clk 0:13:54]}  h6 {[%clk 0:12:08]} 10. Bh4 {[%clk 0:13:54]}  g5 {[%clk 0:12:08]} 11. Bg3 {[%clk 0:13:54]}  Nh5 {[%clk 0:12:08]} 12. Qc2 {[%clk 0:13:28]}  Nxg3 {[%clk 0:09:21]} 13. hxg3 {[%clk 0:13:28]}  Nd7 {[%clk 0:09:21]} 14. Nd2 {[%clk 0:11:27]}  Nf6 {[%clk 0:08:22]} 15. a4 {[%clk 0:11:25]}  Bd7 {[%clk 0:07:47]} 16. f4 {[%clk 0:09:54]}  g4 {[%clk 0:07:47]} 17. Kf2 {[%clk 0:09:54]}  Rae8 {[%clk 0:07:08]} 18. Bd3 {[%clk 0:07:56]}  e6 {[%clk 0:07:08]} 19. dxe6 {[%clk 0:07:56]}  fxe6 {[%clk 0:07:08]} 20. Nde4 {[%clk 0:07:09]}  Nxe4+ {[%clk 0:06:03]} 21. Bxe4 {[%clk 0:07:09]}  Qb4 {[%clk 0:06:03]} 22. Rh1 {[%clk 0:07:09]}  Qxc4 {[%clk 0:06:03]} 23. Rh4 {[%clk 0:07:09]}  d5 {[%clk 0:06:13]} 24. Bd3 {[%clk 0:05:05]}  Qb4 {[%clk 0:06:13]} 25. Rxg4 {[%clk 0:05:05]}  Rf6 {[%clk 0:06:13]} 26. Rh1 {[%clk 0:05:05]}  c4 {[%clk 0:05:58]} 27. Bh7+ {[%clk 0:03:07]}  Kf8 {[%clk 0:05:58]} 28. Bg6 {[%clk 0:03:07]}  Re7 {[%clk 0:05:58]} 29. Rgh4 {[%clk 0:01:55]}  d4 {[%clk 0:05:46]} 30. exd4 {[%clk 0:01:08]}  Rxg6 {[%clk 0:05:46]} 31. Qxg6 {[%clk 0:01:08]}  Qxb2+ {[%clk 0:05:46]} 32. Kg1 {[%clk 0:01:08]}  Qxc3 {[%clk 0:05:46]} 33. Kh2 {[%clk 0:01:08]}  Qd3 {[%clk 0:02:13]} 34. f5 {[%clk 0:00:18]}  exf5 {[%clk 0:02:13]} 35. Qd6 {[%clk 0:00:18]}  Qe3 {[%clk 0:02:13]} 36. Rb1 {[%clk 0:00:18]}  Bc6 {[%clk 0:02:13]} 37. Rf4 {[%clk 0:00:18]}  Kg8 {[%clk 0:02:13]} 38. d5 {[%clk 0:00:18]}  Bxa4 {[%clk 0:01:12]} 39. Rxc4 {[%clk 0:00:22]}  Be8 {[%clk 0:01:12]} 40. Rc8 {[%clk 0:00:22]}  Kh7 {[%clk 0:01:12]} 41. Rb6 {[%clk 0:00:22]}  Bf7 {[%clk 0:01:12]} 42. Rc7 {[%clk 0:00:22]}  Rxc7 {[%clk 0:01:12]} 43. Qxc7 {[%clk 0:00:22]}  Bxd5 {[%clk 0:01:12]} 44. Rd6 {[%clk 0:00:22]}  Qe4 {[%clk 0:01:12]} 0-1


[Site "http://www.Chess.com"]

[Event "FIDE World Rapid Chess Championship 2021"]
[White "Shirov, Alexei"]
[Black "Santos Latasa, Jaime"]
[WhiteFideId "2209390"]
[BlackFideId "2293307"]
[WhiteElo "2702"]
[BlackElo "2618"]
[Result "1-0"]
[Round "11"]
[TimeControl "900+10"]
[Date "2021.12.28"]
[WhiteClock "0:00:54"]
[BlackClock "0:00:23"]

1. e4 {[%clk 0:15:00]}  c5 {[%clk 0:15:00]} 2. Nc3 {[%clk 0:15:00]}  Nc6 {[%clk 0:15:00]} 3. Nge2 {[%clk 0:15:00]}  g6 {[%clk 0:15:00]} 4. d4 {[%clk 0:15:00]}  cxd4 {[%clk 0:15:00]} 5. Nxd4 {[%clk 0:15:00]}  Bg7 {[%clk 0:15:00]} 6. Be3 {[%clk 0:15:00]}  Nf6 {[%clk 0:15:00]} 7. Bc4 {[%clk 0:15:36]}  O-O {[%clk 0:15:38]} 8. Bb3 {[%clk 0:15:36]}  d6 {[%clk 0:15:38]} 9. f3 {[%clk 0:15:36]}  Qa5 {[%clk 0:15:38]} 10. Qd2 {[%clk 0:15:36]}  Nxd4 {[%clk 0:15:38]} 11. Bxd4 {[%clk 0:15:36]}  Be6 {[%clk 0:15:38]} 12. O-O-O {[%clk 0:15:36]}  b5 {[%clk 0:15:38]} 13. Kb1 {[%clk 0:15:16]}  b4 {[%clk 0:14:50]} 14. Bxe6 {[%clk 0:15:16]}  fxe6 {[%clk 0:14:50]} 15. Ne2 {[%clk 0:15:16]}  Rfd8 {[%clk 0:14:30]} 16. Be3 {[%clk 0:14:35]}  e5 {[%clk 0:11:04]} 17. c4 {[%clk 0:10:51]}  e6 {[%clk 0:07:47]} 18. Bg5 {[%clk 0:09:40]}  Qc5 {[%clk 0:07:47]} 19. Rc1 {[%clk 0:08:42]}  a5 {[%clk 0:05:44]} 20. h4 {[%clk 0:08:42]}  Rd7 {[%clk 0:05:44]} 21. g4 {[%clk 0:06:51]}  Rf8 {[%clk 0:05:24]} 22. h5 {[%clk 0:06:51]}  Ne8 {[%clk 0:05:24]} 23. Rhf1 {[%clk 0:06:51]}  Qc6 {[%clk 0:04:39]} 24. Ng3 {[%clk 0:05:05]}  Rdf7 {[%clk 0:02:25]} 25. Qe3 {[%clk 0:04:06]}  Qc5 {[%clk 0:02:25]} 26. Qe2 {[%clk 0:04:06]}  Nf6 {[%clk 0:02:25]} 27. h6 {[%clk 0:04:06]}  Bh8 {[%clk 0:02:25]} 28. Be3 {[%clk 0:04:06]}  Qc6 {[%clk 0:02:25]} 29. g5 {[%clk 0:04:06]}  Nd7 {[%clk 0:02:25]} 30. Rf2 {[%clk 0:03:36]}  Nc5 {[%clk 0:01:59]} 31. Nf1 {[%clk 0:03:36]}  b3 {[%clk 0:01:59]} 32. Bxc5 {[%clk 0:03:36]}  bxa2+ {[%clk 0:01:59]} 33. Kxa2 {[%clk 0:03:36]}  Qxc5 {[%clk 0:01:45]} 34. Rc3 {[%clk 0:02:14]}  Rb8 {[%clk 0:01:45]} 35. Qe3 {[%clk 0:02:14]}  Qc6 {[%clk 0:01:45]} 36. Rfc2 {[%clk 0:02:14]}  Rb4 {[%clk 0:01:45]} 37. Nd2 {[%clk 0:02:14]}  Rfb7 {[%clk 0:01:45]} 38. Kb1 {[%clk 0:02:14]}  Rb8 {[%clk 0:01:45]} 39. Rb3 {[%clk 0:01:37]}  Rxb3 {[%clk 0:01:08]} 40. Nxb3 {[%clk 0:01:37]}  a4 {[%clk 0:01:08]} 41. Nc1 {[%clk 0:01:37]}  Rb7 {[%clk 0:01:08]} 42. Qd3 {[%clk 0:01:37]}  Kf8 {[%clk 0:01:08]} 43. Rc3 {[%clk 0:01:37]}  Ke7 {[%clk 0:01:08]} 44. Qc2 {[%clk 0:01:37]}  Rc7 {[%clk 0:00:23]} 45. Nd3 {[%clk 0:00:50]}  Qa6 {[%clk 0:00:23]} 46. c5 {[%clk 0:00:50]}  d5 {[%clk 0:00:23]} 47. c6 {[%clk 0:00:50]}  Qb6 {[%clk 0:00:23]} 48. Qxa4 {[%clk 0:00:50]}  Qg1+ {[%clk 0:00:23]} 49. Rc1 {[%clk 0:00:50]}  Qxg5 {[%clk 0:00:23]} 50. Qa5 {[%clk 0:00:50]}  Rc8 {[%clk 0:00:23]} 51. Qa7+ {[%clk 0:00:50]}  Kf8 {[%clk 0:00:23]} 52. Qxh7 {[%clk 0:00:50]}  Qf6 {[%clk 0:00:23]} 53. Nc5 {[%clk 0:00:54]}  Qxf3 {[%clk 0:00:23]} 54. Nxe6+ {[%clk 0:00:54]} 1-0


[Site "http://www.Chess.com"]